Cogmind - Beta 9.6 @@@ ROGUE MODE // 2020.07.11 @ 11:24:19 Player: Pimski Result: Self-destructed Performance ------------- Evolutions (8) 4000 Regions Visited (36) 7200 Robots Destroyed (253) 1265 Value Destroyed (5310) 5310 Prototype IDs (105) 2100 Alien Tech Used (4) 800 Bonus (8697) 8697 TOTAL SCORE: 29372 Bonus ------- High Alert Combat Kills 33 Follower Combat Kills 300 Aligned with FarCom 300 Met Data Miner 300 Met Imprinter 300 Destroyed Z-Imprinter 1000 Triggered Deep Caves Wall 1000 Exposed GOLEM Chamber 2000 Met Zhirov 300 Met Warlord at Base 500 MAIN.C Attacked Warlord 500 Used Core Reset Matrix 3000 Met Warlord at Research 2000 Scanned by Researcher 500 Friendly Fire -3336 Cogmind --------- Core Integrity 383/1450 Matter 300/300 Energy 100/100 System Corruption 0% Temperature Cool (0) Movement Core (50) Location -2/Section 7 Parts ------- > --- POWER (2) -------- (None) > --- PROPULSION (2) --- (None) > --- UTILITY (17) ----- System Mapper > --- WEAPON (2) ------- (None) > --- INVENTORY (4) ---- Gravity Neutralizing Apparatus Dimensional Manipulator Heavy Rocket Launcher Enhanced Force Lance Peak State ------------ > --- POWER ------------ Mini Fusion Reactor Mini Fusion Reactor > --- PROPULSION ------- Nuclear Pulse Array > --- UTILITY ---------- Large Storage Unit Experimental Energy Well Inertial Stasis Machine Inertial Stasis Machine Zionite Metafield Generator Advanced Reaction Control System Improved Phase Shifter Experimental Utility Shielding Advanced Hacking Suite Advanced Hacking Suite Advanced Hacking Suite Advanced Hacking Suite Experimental Hacking Suite System Mapper System Mapper System Shield Makeshift System Shield > --- WEAPON ----------- Phasing Sabre Enhanced Force Lance > --- INVENTORY -------- Gravity Neutralizing Apparatus Dimensional Manipulator Mobile Assembly Unit Core Reset Matrix Subatomic Replicator Heavy Rocket Launcher [Rating: 162] Favorites ----------- Power Mini Fusion Reactor Engine Heavy Ion Engine Power Core Micro Fission Core Reactor Mini Fusion Reactor Propulsion Light Treads Treads Light Treads Leg Aluminum Leg Wheel Wheel Flight Unit Improved Flight Unit Utility High-capacity Storage Unit Device Gravity Neutralizing Apparatus Storage High-capacity Storage Unit Processor Experimental Targeting Computer Hackware Advanced Hacking Suite Protection Hardened Light Armor Plating Weapon Heavy Assault Rifle Energy Gun Small Laser Energy Cannon Heavy Phase Cannon Ballistic Gun Heavy Assault Rifle Launcher Heavy Rocket Launcher Special Weapon Plasma Cutter Impact Weapon CL-ANK's Mallet Slashing Weapon Phasing Sabre Piercing Weapon Enhanced Force Lance Build | -11 -10 -10 -9 -9 -9 -8 -8 -8 -7 -7 -7 -7 -7 -6 -6 -6 -6 -6 -5 -5 -5 -5 -5 -5 -5 -4 -4 -4 -4 -4 -3 -3 -3 -2 -2 -2 ------- Run | Scr Mat Min Mat Min Exi Min Mat Sto Fac Low Low Zio Dee Pro Fac Low Low Dat Pro Fac Was Fac Upp Upp Zhi Pro Fac Upp Upp War Pro Res Qua Res Tes Sec Slots Evolved 16 | . . . 2 . . . 2 . 2 . . . . . 2 . . . . 2 . . . . . . 2 . . . . 2 . 2 . . Power 1 | . . . . . . . . . . . . . . . 1 . . . . . . . . . . . . . . . . . . . . . Propulsion . | . . . . . . . . . . . . . . . . . . . . . . . . . . . . . . . . . . . . . Utility 15 | . . . 2 . . . 2 . 2 . . . . . 1 . . . . 2 . . . . . . 2 . . . . 2 . 2 . . Weapon . | . . . . . . . . . . . . . . . . . . . . . . . . . . . . . . . . . . . . . Parts Attached 323 | . 17 10 15 . 21 10 21 44 18 4 4 4 45 . 5 . . 3 1 12 . 11 . 3 5 . 8 . . 14 1 23 3 4 17 . Power 29 | . 2 . 2 . . . . 4 1 . . . 4 . 2 . . . . 4 . 3 . . 2 . . . . 1 . 3 1 . . . Engine 8 | . 2 . 2 . . . . 3 . . . . . . 1 . . . . . . . . . . . . . . . . . . . . . Core 3 | . . . . . . . . . . . . . . . . . . . . . . 2 . . 1 . . . . . . . . . . . Reactor 18 | . . . . . . . . 1 1 . . . 4 . 1 . . . . 4 . 1 . . 1 . . . . 1 . 3 1 . . . Propulsion 52 | . 2 7 3 . 3 . 6 12 2 . . . 6 . . . . . . 3 . 1 . . . . 1 . . 2 1 1 . . 2 . Treads 33 | . 2 5 3 . 3 . 6 11 . . . . 3 . . . . . . . . . . . . . . . . . . . . . . . Leg . | . . . . . . . . . . . . . . . . . . . . . . . . . . . . . . . . . . . . . Wheel 2 | . . 2 . . . . . . . . . . . . . . . . . . . . . . . . . . . . . . . . . . Hover . | . . . . . . . . . . . . . . . . . . . . . . . . . . . . . . . . . . . . . Flight 17 | . . . . . . . . 1 2 . . . 3 . . . . . . 3 . 1 . . . . 1 . . 2 1 1 . . 2 . Utility 144 | . 3 . 6 . 12 2 7 10 11 . 3 2 24 . 3 . . 2 . 4 . 3 . 1 3 . 7 . . 8 . 14 2 4 13 . Device 53 | . . . . . 3 . . 1 4 . . 1 12 . 1 . . 2 . 1 . . . 1 1 . 1 . . 3 . 7 2 1 12 . Storage 18 | . 3 . 1 . 4 . 1 1 1 . . . 3 . . . . . . 1 . . . . . . 1 . . 1 . 1 . . . . Processor 6 | . . . 1 . . . 1 . 1 . 3 . . . . . . . . . . . . . . . . . . . . . . . . . Hackware 22 | . . . . . . . . . 3 . . . 1 . 2 . . . . 2 . 2 . . . . 3 . . . . 6 . 2 1 . Protection 45 | . . . 4 . 5 2 5 8 2 . . 1 8 . . . . . . . . 1 . . 2 . 2 . . 4 . . . 1 . . Artifact . | . . . . . . . . . . . . . . . . . . . . . . . . . . . . . . . . . . . . . Weapon 98 | . 10 3 4 . 6 8 8 18 4 4 1 2 11 . . . . 1 1 1 . 4 . 2 . . . . . 3 . 5 . . 2 . Energy Gun 6 | . 3 . 1 . . . 1 . . . . . 1 . . . . . . . . . . . . . . . . . . . . . . . Energy Cannon 1 | . . . . . . . . . . . . . . . . . . . . . . 1 . . . . . . . . . . . . . . Ballistic Gun 44 | . 5 3 3 . 3 5 6 14 2 . . . 3 . . . . . . . . . . . . . . . . . . . . . . . Ballistic Cannon . | . . . . . . . . . . . . . . . . . . . . . . . . . . . . . . . . . . . . . Launcher 16 | . . . . . 1 1 . 1 . 3 1 1 4 . . . . . . . . 2 . . . . . . . . . 1 . . 1 . Special Weapon 2 | . . . . . . . . . . . . . . . . . . . . 1 . 1 . . . . . . . . . . . . . . Impact Weapon 7 | . . . . . . . 1 3 . . . 1 1 . . . . 1 . . . . . . . . . . . . . . . . . . Slashing Weapon 18 | . 2 . . . 2 2 . . 2 1 . . 2 . . . . . 1 . . . . 2 . . . . . 2 . 2 . . . . Piercing Weapon 4 | . . . . . . . . . . . . . . . . . . . . . . . . . . . . . . 1 . 2 . . 1 . Special Melee Weapon . | . . . . . . . . . . . . . . . . . . . . . . . . . . . . . . . . . . . . . Unidentified Prototypes 31 | . . . . . 5 1 2 4 . . . 1 7 . . . . . . . . . . . 4 . 1 . . 5 . 1 . . . . Parts Lost 59 | . 3 5 . . 4 1 6 3 . . . . 6 . . . . . 1 1 . 1 . . . . . . . . 3 1 2 . 22 . Power 7 | . 1 1 . . . . . 1 . . . . 1 . . . . . 1 . . . . . . . . . . . . . . . 2 . Propulsion 10 | . . 2 . . 3 . 2 . . . . . 1 . . . . . . . . . . . . . . . . . 1 . . . 1 . Utility 30 | . . . . . 1 . 1 1 . . . . 4 . . . . . . . . . . . . . . . . . 2 1 2 . 18 . Weapon 12 | . 2 2 . . . 1 3 1 . . . . . . . . . . . 1 . 1 . . . . . . . . . . . . 1 . Highest Loss Streak 11 | . 2 4 . . 2 1 1 1 . . . . 3 . . . . . 1 1 . 1 . . . . . . . . 3 1 2 . 11 . Average Slot Usage (%) 93 | . 99 86 98 100 96 87 93 99 87 88 90 92 88 100 91 93 93 93 86 91 94 87 82 85 92 94 93 94 94 88 81 87 93 94 78 . Engine 5 | . 13 1 10 11 11 11 9 8 . . . . . . 5 6 6 6 6 . . . . . . . . . . . . . . . . . Reactor 2 | . . . . . . . . . 6 7 7 7 5 7 5 6 6 6 6 11 11 3 5 5 5 5 5 5 5 5 5 5 8 8 7 . Treads 11 | . 19 26 22 22 21 22 17 18 1 . . . 7 . . . . . . . . . . . . . . . . . . . . . . . Flight 3 | . . . . . . . . . 13 15 15 15 7 15 13 13 13 13 13 7 11 5 5 5 5 5 5 5 5 5 5 3 4 4 3 . Device 9 | . . . . . 2 . . . 17 15 15 19 19 38 32 26 26 35 33 29 29 19 17 21 23 23 18 15 15 18 21 21 24 22 16 . Storage 22 | . 27 28 30 33 23 22 25 32 17 15 15 15 18 23 20 20 20 20 20 22 23 18 17 17 17 17 15 15 15 12 10 9 9 8 7 . Processor 2 | . . . . . . . 4 9 1 . 4 15 . . . . . . . . . . . . . . . . . . . . . . . . Hackware 8 | . . . . . . . . . 21 23 17 . . . 5 13 13 4 . 8 11 20 23 18 17 17 29 31 31 31 30 38 36 38 33 . Protection 9 | . . . 13 11 14 10 18 12 2 7 7 9 16 . . . . . . . . 4 5 5 4 5 3 5 5 4 4 . . 3 1 . Energy Gun 1 | . 10 . 3 . . . 3 . . . . . . . . . . . . . . . . . . . . . . . . . . . . . Ballistic Gun 10 | . 17 28 18 22 17 21 14 17 2 . . . 2 7 . . . . . . . . . . . . . . . . . . . . . . Slashing Weapon 2 | . . . . . 3 . . . 2 2 7 2 3 7 6 6 6 . 6 5 5 2 . 2 11 11 10 10 10 6 4 3 4 4 3 . Naked Turns . | . . . . . . . . . . . . . . . . . . . . . . . . . . . . . . . . . . . . . Heaviest Build 139 | 11 40 39 65 65 113 105 139 136 130 36 36 48 58 42 46 46 46 58 46 56 55 55 44 50 50 50 50 50 50 67 67 72 49 52 52 . Greatest Support 77 | 20 40 40 40 40 40 40 40 40 48 36 36 48 62 46 46 46 46 58 46 70 58 66 44 56 56 56 56 51 51 67 67 73 73 52 77 3 Greatest Overweight (x) 5 | . 1 3 1 1 2 2 5 3 3 . . . 1 . . . . . . . . 1 . . . . . . . 1 . . . . 1 . Average Overweight (x) . | . . . . 1 1 2 2 2 . . . . . . . . . . . . . . . . . . . . . . . . . . . . Largest Inventory Capacity 34 | 6 16 16 22 22 28 20 28 34 34 14 14 14 14 14 14 14 14 14 14 18 18 18 14 14 14 14 14 14 14 14 14 14 10 10 10 4 Average Capacity 19 | 6 15 16 20 22 20 20 26 31 16 14 14 14 13 14 14 14 14 14 14 17 18 14 14 14 14 14 14 14 14 14 14 12 10 10 9 4 Most Carried 34 | 6 16 16 22 22 28 20 28 34 34 14 14 14 14 14 14 14 14 14 13 18 18 18 14 14 14 14 14 14 14 14 14 14 10 10 10 4 Average Carried 18 | 6 14 13 19 22 19 19 23 31 16 13 13 13 12 14 13 14 14 10 12 15 17 14 14 13 14 14 13 14 13 13 13 11 9 9 9 4 Final Capacity 34 | 6 16 16 22 22 20 20 28 34 14 14 14 14 14 14 14 14 14 14 14 18 18 14 14 14 14 14 14 14 14 14 14 10 10 10 4 4 Final Carried 34 | 6 16 14 22 22 20 20 28 34 14 14 14 14 14 14 14 14 14 11 13 17 17 14 14 14 14 14 14 14 14 14 13 9 10 10 4 4 Class Distribution -------------------- 29% | Hauler-Mutant 13% | Mutant 10% | Wizard-Sprinter 9% | Hacker-Sprinter 9% | Commander-Mutant 8% | Sprinter 6% | Scavenger-Mutant 6% | Wizard-Mutant Dominant Class ---------------- Mutant | -10/Materials Mutant | -10/Mines Hauler-Mutant | -9/Materials Hauler-Mutant | -9/Mines Hauler-Mutant | -9/Exiles Hauler-Mutant | -8/Mines Hauler-Mutant | -8/Materials Hauler-Mutant | -8/Storage Hacker-Sprinter | -7/Factory Hacker-Sprinter | -7/Lower Caves Hacker-Sprinter | -7/Lower Caves Sprinter | -7/Zion Sprinter | -7/Deep Caves Sprinter | -6/Proximity Caves Scavenger-Sprinter | -6/Factory Hacker-Sprinter | -6/Lower Caves Hacker-Sprinter | -6/Lower Caves Sprinter | -6/Data Miner Sprinter | -5/Proximity Caves Hacker-Sprinter | -5/Factory Hacker-Sprinter | -5/Waste Hacker-Sprinter | -5/Factory Hacker-Sprinter | -5/Upper Caves Hacker-Sprinter | -5/Upper Caves Hacker-Sprinter | -5/Zhirov Hacker-Sprinter | -4/Proximity Caves Wizard-Sprinter | -4/Factory Wizard-Sprinter | -4/Upper Caves Wizard-Sprinter | -4/Upper Caves Wizard-Sprinter | -4/Warlord Wizard-Sprinter | -3/Proximity Caves Wizard-Sprinter | -3/Research Wizard-Sprinter | -3/Quarantine Wizard-Sprinter | -2/Research Wizard-Mutant | -2/Testing Wizard-Mutant | -2/Section 7 Resources | -11 -10 -10 -9 -9 -9 -8 -8 -8 -7 -7 -7 -7 -7 -6 -6 -6 -6 -6 -5 -5 -5 -5 -5 -5 -5 -4 -4 -4 -4 -4 -3 -3 -3 -2 -2 -2 ----------- Run | Scr Mat Min Mat Min Exi Min Mat Sto Fac Low Low Zio Dee Pro Fac Low Low Dat Pro Fac Was Fac Upp Upp Zhi Pro Fac Upp Upp War Pro Res Qua Res Tes Sec Matter Collected 6245 | 204 252 124 335 78 308 273 730 1513 224 134 24 60 836 10 40 . 10 . . 95 55 40 65 58 70 . 80 . . 140 . 75 116 127 169 . Remotely . | . . . . . . . . . . . . . . . . . . . . . . . . . . . . . . . . . . . . . Salvage Created 10451 | 100 782 87 1256 252 137 294 1073 3013 288 69 37 . 1213 . . . . . . 101 . 91 . . 424 . 429 . . . . 121 86 39 559 . Parts 475 | 1 42 . 77 8 5 11 57 150 14 12 7 . 39 . . . . . . 7 . . . . 2 . 7 . . . . 5 6 3 22 . Haulers Intercepted 18 | . 2 . 5 . . . 2 6 1 . . . . . . . . . . . . 1 . . . . 1 . . . . . . . . . Recyclers Shooed 13 | . 1 . 3 . . . 2 6 1 . . . . . . . . . . . . . . . . . . . . . . . . . . . Parts Field Recycled . | . . . . . . . . . . . . . . . . . . . . . . . . . . . . . . . . . . . . . Retrieved Matter . | . . . . . . . . . . . . . . . . . . . . . . . . . . . . . . . . . . . . . Parts Self-Destructed 28 | . . . . . . . . . . 5 6 . . . . . . . . . . . 6 . 1 . . . . 10 . . . . . . Prevented 20 | . . . . . . . . . . . . . . . . . . . . . . . . . . . . . . 20 . . . . . . Kills | -11 -10 -10 -9 -9 -9 -8 -8 -8 -7 -7 -7 -7 -7 -6 -6 -6 -6 -6 -5 -5 -5 -5 -5 -5 -5 -4 -4 -4 -4 -4 -3 -3 -3 -2 -2 -2 ------- Run | Scr Mat Min Mat Min Exi Min Mat Sto Fac Low Low Zio Dee Pro Fac Low Low Dat Pro Fac Was Fac Upp Upp Zhi Pro Fac Upp Upp War Pro Res Qua Res Tes Sec Combat Hostiles Destroyed 155 | . 15 6 15 6 3 4 17 22 . 7 3 . 45 . . . . . . 1 . . . . . . . . . . . 4 . . 7 . Melee 14 | . . . . . 1 . . . . . . . 5 . . . . . . 1 . . . . . . . . . . . . . . 7 . Guns 91 | . 15 6 15 6 . 1 17 22 . . . . 9 . . . . . . . . . . . . . . . . . . . . . . . AOE 50 | . . . . . 2 3 . . . 7 3 . 31 . . . . . . . . . . . . . . . . . . 4 . . . . Classes Destroyed 20 | 1 6 1 2 . . . 2 . . 1 . . 4 . . . . . . . . . . . . . . . . . . . 1 . 2 . Worker 8 | . 1 . 3 . . . . 2 . . . . . . . . . . . 1 . . . . . . . . . . . 1 . . . . Builder 5 | . . . . . . . 1 3 . . . . . . . . . . . . . . . . . . . . . . . 1 . . . . Hauler 18 | . 2 . 5 . . . 2 6 1 . . . . . . . . . . . . 1 . . . . 1 . . . . . . . . . Recycler 30 | 1 2 . 3 . . 1 2 17 2 . . . . . . . . . . . . . . . . . 2 . . . . . . . . . Mechanic 1 | . . . . . . . . . . . . . . . . . . . . . . . . . . . . . . . . . 1 . . . Operator 10 | . 1 . 2 . . . . 3 1 . . . . . . . . . . 1 . . . . . . . . . . . . 1 1 . . Drone 1 | . . . . . . . . . . . . . . . . . . . . . . . . . . . . . . . . . . . 1 . Watcher 9 | . 2 . 2 . . . . 2 2 . . . . . . . . . . . . . . . . . . . . . . . . . 1 . Swarmer 26 | . 6 . . . . . 3 2 . 6 3 . . . . . . . . . . . . . . . . . . . . 4 . . 2 . Grunt 48 | . 9 . 11 6 . 3 9 9 . . . . . . . . . . . 1 . . . . . . . . . . . . . . . . Brawler 1 | . . . 1 . . . . . . . . . . . . . . . . . . . . . . . . . . . . . . . . . Researcher 1 | . . . . . . . . . . . . . . . . . . . . . . . . . . . . . . . . . . . 1 . Sentry 21 | . . . 3 . . . 4 11 . . . . . . . . . . . . . . . . . . . . . . . . . . 3 . Hunter 3 | . . . . . . . 1 1 . . . . . . . . . . . . . . . . . . . . . . . . . . 1 . Z-Technician 5 | . . . . . . . . . . . . . 5 . . . . . . . . . . . . . . . . . . . . . . . Z-Light 1 | . . . . . . . . . . . . . 1 . . . . . . . . . . . . . . . . . . . . . . . Thief 1 | . . . . . . . . . . 1 . . . . . . . . . . . . . . . . . . . . . . . . . . Assembler 2 | . . . . . . . . . . . . . 2 . . . . . . . . . . . . . . . . . . . . . . . Assembled 52 | . . 6 . . 6 . . . . . . . 40 . . . . . . . . . . . . . . . . . . . . . . . Golem 4 | . . . . . . . . . . . . . 4 . . . . . . . . . . . . . . . . . . . . . . . Savage 2 | . . . . . . . . . . . . . 2 . . . . . . . . . . . . . . . . . . . . . . . Butcher 1 | . . . . . . . . . . . . . 1 . . . . . . . . . . . . . . . . . . . . . . . Best Kill Streak 39 | 1 4 4 4 6 2 3 3 6 3 8 3 . 39 . . . . . . 2 . 1 . . . . 1 . . . . 4 1 1 2 . Combat Bots Only 37 | . 3 4 4 6 2 3 3 5 . 7 3 . 37 . . . . . . 1 . . . . . . . . . . . 4 . . 2 . Max Kills in Single Turn 17 | 1 2 1 2 1 4 2 1 2 2 3 3 . 17 . . . . . . 1 . 1 . . . . 1 . . . . 2 1 1 1 . Gunslinging . | . . . . . . . . . . . . . . . . . . . . . . . . . . . . . . . . . . . . . Exploded 17 | . . . . . 2 2 . . . 3 3 . 17 . . . . . . . . . . . . . . . . . . 2 . . . . Melee 1 | . . . . . 1 . . . . . . . 1 . . . . . . 1 . . . . . . . . . . . . . . 1 . Uniques/NPCs Destroyed 4 | . . . . . 1 1 . 1 . . . . 1 . . . . . . . . . . . . . . . . . . . . . . . 8R-AWN (-9/Exiles) CL-ANK (-8/Mines) 01-MTF (-8/Storage) Z-Imprinter (-7/Deep Caves) Combat | -11 -10 -10 -9 -9 -9 -8 -8 -8 -7 -7 -7 -7 -7 -6 -6 -6 -6 -6 -5 -5 -5 -5 -5 -5 -5 -4 -4 -4 -4 -4 -3 -3 -3 -2 -2 -2 -------- Run | Scr Mat Min Mat Min Exi Min Mat Sto Fac Low Low Zio Dee Pro Fac Low Low Dat Pro Fac Was Fac Upp Upp Zhi Pro Fac Upp Upp War Pro Res Qua Res Tes Sec Damage Taken 13542 | . 558 799 452 212 995 342 1425 1668 40 124 33 . 1673 18 237 36 45 . 65 271 . 165 . . . 85 110 139 46 371 417 270 262 63 2621 . Core 2858 | . 102 127 89 57 71 . 137 138 16 25 21 . 263 8 60 18 19 . 25 66 . 16 . . . 49 19 89 . 96 194 21 65 20 1047 . Absorbed by Shields 12 | . . . . . . . . . . . . . . . . . . . . . . . . . . . . . . . . . 12 . . . Core Remaining (%) 64 | 100 . 8 . . . 45 . 50 . . . . . 52 . . . . 85 . . . . . . 78 . . . . 65 . 93 . . . Volleys Fired 588 | 4 74 25 80 13 3 53 80 172 9 6 1 . 62 . . . . . . . . 3 . . . . . . . . . 2 . . 1 . Largest 2 | 2 2 2 2 2 1 2 2 2 1 1 1 . 2 . . . . . . . . 1 . . . . . . . . . 1 . . 1 . Hottest 98 | 60 60 40 88 46 33 53 85 51 30 39 39 . 78 . . . . . . . . 98 . . . . . . . . . 39 . . 39 . Shots Fired 1026 | 8 147 49 160 26 3 84 156 307 9 6 1 . 64 . . . . . . . . 3 . . . . . . . . . 2 . . 1 . Gun 1000 | 8 147 49 160 26 . 80 156 305 9 . . . 60 . . . . . . . . . . . . . . . . . . . . . . . Cannon 1 | . . . . . . . . . . . . . . . . . . . . . . 1 . . . . . . . . . . . . . . Launcher 25 | . . . . . 3 4 . 2 . 6 1 . 4 . . . . . . . . 2 . . . . . . . . . 2 . . 1 . Special . | . . . . . . . . . . . . . . . . . . . . . . . . . . . . . . . . . . . . . Kinetic 864 | 4 87 49 113 26 . 80 131 305 9 . . . 60 . . . . . . . . . . . . . . . . . . . . . . . Thermal 137 | 4 60 . 47 . . . 25 . . . . . . . . . . . . . . 1 . . . . . . . . . . . . . . Explosive 23 | . . . . . 3 4 . . . 6 1 . 4 . . . . . . . . 2 . . . . . . . . . 2 . . 1 . Electromagnetic 2 | . . . . . . . . 2 . . . . . . . . . . . . . . . . . . . . . . . . . . . . Robot Hit Streak 28 | 5 13 10 28 12 13 16 19 23 6 2 . . 5 . . . . . . . . . . . . . . . . . . 7 . . 8 . Robot Miss Streak 6 | 1 4 1 3 1 1 2 2 3 2 2 . . 6 . . . . . . . . . . . . . . . . . . . . . . . Penetration Max 2 | . . . . . . . 1 1 2 . . . 1 . . . . . . . . . . . . . . . . . . . . . . . Secondary Targets 5 | . 1 . 1 . . . 1 2 . . . . . . . . . . . . . . . . . . . . . . . . . . . . Max Gunslinging Chain 1 | . 1 . 1 . . . 1 1 . . . . . . . . . . . . . . . . . . . . . . . . . . . . Shots Hit Robots 903 | 7 99 39 120 18 30 67 123 248 11 2 . . 72 . 2 . . 1 . 9 . 4 . . 11 . 6 . . . . 5 2 1 26 . Core Hits 464 | 2 46 18 47 10 20 21 51 88 6 11 3 . 100 . . . . . . 3 . 2 . . 5 . 3 . . . . 9 2 1 16 . Critical Hits 76 | . . . 1 . 1 13 8 14 5 . . . 30 . . . . . . 1 . . . . . . . . . . . . . . 3 . Critical Kills 20 | . . . . . . . 1 1 2 . . . 12 . . . . . . 1 . . . . . . . . . . . . . . 3 . Critical Parts Destroyed 34 | . . . 1 . 1 4 7 5 2 . . . 14 . . . . . . . . . . . . . . . . . . . . . . . Melee Attacks 466 | . 9 . . . 40 4 1 9 8 1 3 . 62 3 20 3 6 1 5 47 . 12 . . 13 10 54 9 8 5 2 58 11 12 50 . Kinetic 20 | . . . . . . . 1 9 . . . . 9 . . . . 1 . . . . . . . . . . . . . . . . . . Impact . | . . . . . . . . . . . . . . . . . . . . . . . . . . . . . . . . . . . . . Slashing 415 | . 9 . . . 40 4 . . 8 1 3 . 53 3 20 3 6 . 5 47 . 12 . . 13 10 54 9 8 5 2 54 7 9 30 . Piercing 31 | . . . . . . . . . . . . . . . . . . . . . . . . . . . . . . . . 4 4 3 20 . Sneak Attacks 26 | . . . . . . . . . 3 . . . 7 . 1 . . 1 . 4 . 1 . . . . 4 . . . . 2 2 1 . . Combat Hostiles 1 | . . . . . . . . . . . . . . . . . . . . 1 . . . . . . . . . . . . . . . . Follow-up Attacks 7 | . . . . . 4 . . . . . . . . . . . . . . . . . . . . . 1 . . . . . . . 2 . Damage Inflicted 23420 | 57 915 282 1506 298 923 858 1725 4294 756 554 204 . 5505 . 159 . . 153 . 617 . 198 . . 1341 . 609 . . . . 690 348 129 1299 . Guns 10591 | 57 907 282 1496 298 . 630 1721 4247 148 . . . 805 . . . . . . . . . . . . . . . . . . . . . . . Cannons . | . . . . . . . . . . . . . . . . . . . . . . . . . . . . . . . . . . . . . Explosions 4412 | . . . . . 345 228 . . . 554 204 . 2602 . . . . . . . . . . . . . . . . . . 405 . . 74 . Melee 8347 | . . . . . 578 . . . 608 . . . 2098 . 159 . . 153 . 617 . 198 . . 1341 . 609 . . . . 285 348 129 1224 . Ramming 70 | . 8 . 10 . . . 4 47 . . . . . . . . . . . . . . . . . . . . . . . . . . 1 . Kinetic 9593 | 26 409 282 832 298 . 630 1395 4247 148 . . . 1173 . . . . 153 . . . . . . . . . . . . . . . . . . Thermal 1519 | 31 498 . 664 . . . 326 . . . . . . . . . . . . . . . . . . . . . . . . . . . . . Explosive 4412 | . . . . . 345 228 . . . 554 204 . 2602 . . . . . . . . . . . . . . . . . . 405 . . 74 . Electromagnetic . | . . . . . . . . . . . . . . . . . . . . . . . . . . . . . . . . . . . . . Impact . | . . . . . . . . . . . . . . . . . . . . . . . . . . . . . . . . . . . . . Slashing 6483 | . . . . . 578 . . . 608 . . . 1730 . 159 . . . . 617 . 198 . . 1341 . 609 . . . . 285 . . 358 . Piercing 1343 | . . . . . . . . . . . . . . . . . . . . . . . . . . . . . . . . . 348 129 866 . Highest Corruption 2 | . . . . . . . 1 1 . . . . . . . . . . . 1 1 1 1 1 1 1 1 1 1 2 2 . . . . . Average Corruption 1 | . . . . . . . 1 1 . . . . . . . . . . . 1 1 1 1 1 1 1 1 1 1 1 2 . . . . . Corruption Purged . | . . . . . . . . . . . . . . . . . . . . . . . . . . . . . . . . . . . . . Effects 24 | . . . . . . . 7 15 . . . . . . . . . . . . . . . 1 . . . . . 1 . . . . . . Message Errors 9 | . . . . . . . 3 6 . . . . . . . . . . . . . . . . . . . . . . . . . . . . Energy Discharges 3 | . . . . . . . . 2 . . . . . . . . . . . . . . . . . . . . . 1 . . . . . . Data Loss (minor) 7 | . . . . . . . 1 5 . . . . . . . . . . . . . . . 1 . . . . . . . . . . . . Targeting Errors 5 | . . . . . . . 3 2 . . . . . . . . . . . . . . . . . . . . . . . . . . . . Overload Shots . | . . . . . . . . . . . . . . . . . . . . . . . . . . . . . . . . . . . . . Overflow Damage 1705 | . . . . . . . . 20 277 11 13 . 471 . 75 . . 93 . 56 . . . . 354 . 197 . . . . 126 . . 12 . Projectiles . | . . . . . . . . . . . . . . . . . . . . . . . . . . . . . . . . . . . . . Explosions 226 | . . . . . . . . . . 11 13 . 174 . . . . . . . . . . . . . . . . . . 28 . . . . Melee 1479 | . . . . . . . . 20 277 . . . 297 . 75 . . 93 . 56 . . . . 354 . 197 . . . . 98 . . 12 . Knockbacks . | . . . . . . . . . . . . . . . . . . . . . . . . . . . . . . . . . . . . . Impact . | . . . . . . . . . . . . . . . . . . . . . . . . . . . . . . . . . . . . . Kinetic . | . . . . . . . . . . . . . . . . . . . . . . . . . . . . . . . . . . . . . Secondary . | . . . . . . . . . . . . . . . . . . . . . . . . . . . . . . . . . . . . . Self-Inflicted Damage 130 | . . . . . . . . . . 35 . . . . . . . . . . . 16 . . . . . . . . . 79 . . . . Shots 3 | . . . . . . . . . . 1 . . . . . . . . . . . 1 . . . . . . . . . 1 . . . . Rammed 10 | . 2 . 2 . . . 2 3 . . . . . . . . . . . . . . . . . . . . . . . . . . 1 . Targets Rammed 10 | . 2 . 2 . . . 2 3 . . . . . . . . . . . . . . . . . . . . . . . . . . 1 . Kicked . | . . . . . . . . . . . . . . . . . . . . . . . . . . . . . . . . . . . . . Crushed . | . . . . . . . . . . . . . . . . . . . . . . . . . . . . . . . . . . . . . Highest Temperature 291 | 20 123 20 261 5 . 3 269 153 . 32 8 . 291 . 20 10 1 1 1 242 186 163 . . . . . . . 7 . . . . . . Average Temperature 75 | 15 33 13 90 3 . 2 50 37 . 13 6 . 85 . 8 4 1 1 1 106 118 78 . . . . . . . 7 . . . . . . Received Heat Transfer 2989 | . 219 160 216 123 . 54 621 585 18 . . . 435 6 36 18 12 . . 63 . 27 . . . 21 . 30 21 72 18 39 33 . 162 . Effects 2 | . . . 1 . . . . . . . . . . . . . . . . 1 . . . . . . . . . . . . . . . . Energy Bleed 1 | . . . . . . . . . . . . . . . . . . . . 1 . . . . . . . . . . . . . . . . Interference 1 | . . . 1 . . . . . . . . . . . . . . . . . . . . . . . . . . . . . . . . . Siege Activations . | . . . . . . . . . . . . . . . . . . . . . . . . . . . . . . . . . . . . . Robots Corrupted . | . . . . . . . . . . . . . . . . . . . . . . . . . . . . . . . . . . . . . Combat Hostiles . | . . . . . . . . . . . . . . . . . . . . . . . . . . . . . . . . . . . . . Parts Fried . | . . . . . . . . . . . . . . . . . . . . . . . . . . . . . . . . . . . . . Impact Corruptions 1 | . . . . . . . . 1 . . . . . . . . . . . . . . . . . . . . . . . . . . . . Robots Melted . | . . . . . . . . . . . . . . . . . . . . . . . . . . . . . . . . . . . . . Combat Hostiles . | . . . . . . . . . . . . . . . . . . . . . . . . . . . . . . . . . . . . . Parts Melted 11 | . . . 2 . . 2 4 3 . . . . . . . . . . . . . . . . . . . . . . . . . . . . Heat Transferred 3494 | 75 1125 . 1517 . . . 777 . . . . . . . . . . . . . . . . . . . . . . . . . . . . . Parts Sabotaged . | . . . . . . . . . . . . . . . . . . . . . . . . . . . . . . . . . . . . . Parts Stolen . | . . . . . . . . . . . . . . . . . . . . . . . . . . . . . . . . . . . . . Parts Stripped . | . . . . . . . . . . . . . . . . . . . . . . . . . . . . . . . . . . . . . Power Chain Reactions . | . . . . . . . . . . . . . . . . . . . . . . . . . . . . . . . . . . . . . Missiles Intercepted . | . . . . . . . . . . . . . . . . . . . . . . . . . . . . . . . . . . . . . Alert | -11 -10 -10 -9 -9 -9 -8 -8 -8 -7 -7 -7 -7 -7 -6 -6 -6 -6 -6 -5 -5 -5 -5 -5 -5 -5 -4 -4 -4 -4 -4 -3 -3 -3 -2 -2 -2 ------- Run | Scr Mat Min Mat Min Exi Min Mat Sto Fac Low Low Zio Dee Pro Fac Low Low Dat Pro Fac Was Fac Upp Upp Zhi Pro Fac Upp Upp War Pro Res Qua Res Tes Sec Peak Influence 871 | 5 195 30 197 184 . 98 419 569 449 . . . . . 475 . . . . 332 116 486 . . . . 248 . . . . 871 84 117 436 112 Average Influence 193 | 3 71 5 60 101 . 79 112 331 321 . . . . . 170 . . . . 191 116 222 . . . . 110 . . . . 392 30 41 143 112 Maximum Alert Level 3 | . . . 1 . . . 2 2 2 . . . . . 2 . . . . 1 . 2 . . . . 1 . . . . 3 . . 2 . Low Security (%) 59 | 100 100 100 99 100 . 100 81 21 . . . . . . 72 . . . . 47 100 37 . . . . 86 . . . . 21 100 100 61 100 Level 1 24 | . . . . . . . 12 41 85 . . . . . 12 . . . . 52 . 50 . . . . 13 . . . . 26 . . 30 . Level 2 15 | . . . . . . . 6 37 14 . . . . . 15 . . . . . . 11 . . . . . . . . . 38 . . 7 . Level 3 . | . . . . . . . . . . . . . . . . . . . . . . . . . . . . . . . . 13 . . . . Level 4 . | . . . . . . . . . . . . . . . . . . . . . . . . . . . . . . . . . . . . . Level 5 . | . . . . . . . . . . . . . . . . . . . . . . . . . . . . . . . . . . . . . High Security . | . . . . . . . . . . . . . . . . . . . . . . . . . . . . . . . . . . . . . Max Security . | . . . . . . . . . . . . . . . . . . . . . . . . . . . . . . . . . . . . . Squads Dispatched 34 | . 3 . . . . . 7 5 . . . . . . 2 . . . . 1 . 3 . . . . 1 . . . . 3 2 3 4 . Investigation 10 | . 1 . . . . . 1 2 . . . . . . 1 . . . . . . 2 . . . . 1 . . . . 1 . 1 . . Extermination 4 | . . . . . . . . . . . . . . . 1 . . . . . . . . . . . . . . . . 1 . . 2 . Reinforcement 16 | . 2 . . . . . 2 3 . . . . . . . . . . . 1 . 1 . . . . . . . . . 1 2 2 2 . Assault 1 | . . . . . . . 1 . . . . . . . . . . . . . . . . . . . . . . . . . . . . . Garrison 3 | . . . . . . . 3 . . . . . . . . . . . . . . . . . . . . . . . . . . . . . Intercept . | . . . . . . . . . . . . . . . . . . . . . . . . . . . . . . . . . . . . . Construction Impeded 2 | . . . . . . . . 1 . . . . . . . . . . . . . . . . . . . . . . . . . . 1 . Haulers Reinforced 1 | . . . . . . . . . . . . . . . . . . . . . . 1 . . . . . . . . . . . . . . Stealth | -11 -10 -10 -9 -9 -9 -8 -8 -8 -7 -7 -7 -7 -7 -6 -6 -6 -6 -6 -5 -5 -5 -5 -5 -5 -5 -4 -4 -4 -4 -4 -3 -3 -3 -2 -2 -2 --------- Run | Scr Mat Min Mat Min Exi Min Mat Sto Fac Low Low Zio Dee Pro Fac Low Low Dat Pro Fac Was Fac Upp Upp Zhi Pro Fac Upp Upp War Pro Res Qua Res Tes Sec Distress Signals 29 | . 3 . 2 . . . 4 . 1 . . . . . 3 . . . . 4 . 1 . . . . 2 . . 1 . 1 3 3 1 . Communications Jammed . | . . . . . . . . . . . . . . . . . . . . . . . . . . . . . . . . . . . . . Distress Signals . | . . . . . . . . . . . . . . . . . . . . . . . . . . . . . . . . . . . . . Times Spotted 567 | . 33 23 18 6 4 8 48 34 13 7 4 . 46 5 40 4 2 4 7 36 . 28 6 . . 6 23 9 6 23 12 30 27 14 41 . Peak Tracking Total 37 | . 4 16 4 3 4 4 7 4 7 3 3 . 37 5 14 4 5 4 7 13 . 8 6 . . 6 11 9 3 23 12 11 14 8 11 . Tactical Retreats 80 | . 1 4 . . . 2 14 2 1 . 1 . . . 9 . . . . 7 . 6 1 . . . 9 . 1 1 1 8 4 1 7 . Traps | -11 -10 -10 -9 -9 -9 -8 -8 -8 -7 -7 -7 -7 -7 -6 -6 -6 -6 -6 -5 -5 -5 -5 -5 -5 -5 -4 -4 -4 -4 -4 -3 -3 -3 -2 -2 -2 ------- Run | Scr Mat Min Mat Min Exi Min Mat Sto Fac Low Low Zio Dee Pro Fac Low Low Dat Pro Fac Was Fac Upp Upp Zhi Pro Fac Upp Upp War Pro Res Qua Res Tes Sec Traps Triggered 18 | . . . . . . . 3 2 1 . . . . . 1 . . . . 5 . 2 . . . . . . . . . . 2 . 2 . Indirectly 1 | . . . . . . . . 1 . . . . . . . . . . . . . . . . . . . . . . . . . . . . Trap Hack Attempts . | . . . . . . . . . . . . . . . . . . . . . . . . . . . . . . . . . . . . . Triggered . | . . . . . . . . . . . . . . . . . . . . . . . . . . . . . . . . . . . . . Disarmed 6 | . . . . . . . . . . . . . . . . . . . . . . . . . . . . . . . . . 6 . . . Reprogrammed 12 | . . . . . . . . . . . . . . . . . . . . . . . . . . . . . . . . . 6 . 6 . Reused 7 | . . . . . . . . . . . . . . . . . . . . . . . . . . . . . . . . . 1 . 6 . Traps Extracted . | . . . . . . . . . . . . . . . . . . . . . . . . . . . . . . . . . . . . . Installed . | . . . . . . . . . . . . . . . . . . . . . . . . . . . . . . . . . . . . . Triggered 13 | . . . . . . . . . . . . . . . . . . . . . . . . . . 1 . . . 5 . . 1 . 6 . Machines | -11 -10 -10 -9 -9 -9 -8 -8 -8 -7 -7 -7 -7 -7 -6 -6 -6 -6 -6 -5 -5 -5 -5 -5 -5 -5 -4 -4 -4 -4 -4 -3 -3 -3 -2 -2 -2 ---------- Run | Scr Mat Min Mat Min Exi Min Mat Sto Fac Low Low Zio Dee Pro Fac Low Low Dat Pro Fac Was Fac Upp Upp Zhi Pro Fac Upp Upp War Pro Res Qua Res Tes Sec Machines Disabled 25 | . . . . . 1 . 4 7 1 . . . 3 . . . . . . 1 . . . . . . 1 . . . . 2 1 . 4 . Max in Single Turn 2 | . . . . . 1 . 1 2 1 . . . 1 . . . . . . 1 . . . . . . 1 . . . . 1 1 . 1 . Garrison Access 13 | . . . . . . . 1 . 1 . . . . . 2 . . . . 2 . . . . . . 2 . . . . 1 . 3 1 . Machines Sabotaged . | . . . . . . . . . . . . . . . . . . . . . . . . . . . . . . . . . . . . . Garrisons Compromised . | . . . . . . . . . . . . . . . . . . . . . . . . . . . . . . . . . . . . . Overloaded Fab Kills . | . . . . . . . . . . . . . . . . . . . . . . . . . . . . . . . . . . . . . Fab Network Shutdowns 3 | . . . . . . . . . . . . . . . . . . . . . . 1 . . . . . . . . . 1 . . 1 . Hacking | -11 -10 -10 -9 -9 -9 -8 -8 -8 -7 -7 -7 -7 -7 -6 -6 -6 -6 -6 -5 -5 -5 -5 -5 -5 -5 -4 -4 -4 -4 -4 -3 -3 -3 -2 -2 -2 --------- Run | Scr Mat Min Mat Min Exi Min Mat Sto Fac Low Low Zio Dee Pro Fac Low Low Dat Pro Fac Was Fac Upp Upp Zhi Pro Fac Upp Upp War Pro Res Qua Res Tes Sec Machines Accessed 154 | . 6 . 4 1 2 . 7 16 3 . 1 . . . 12 . . 4 . 22 . 8 1 . 4 . 13 . . 5 . 15 7 9 14 . Terminals 89 | . 5 . 3 1 . . 3 12 2 . . . . . 9 . . . . 16 . 3 1 . . . 7 . . . . 9 6 5 7 . Fabricators 7 | . . . . . . . . . . . . . . . . . . . . . . 2 . . . . 1 . . . . 1 . 1 2 . Repair Stations 10 | . . . . . . . . 2 . . . . . . 1 . . . . 1 . 1 . . . . 1 . . . . 1 1 . 2 . Recycling Units 10 | . 1 . . . . . 1 2 . . . . . . . . . . . 2 . 1 . . . . 2 . . . . 1 . . . . Scanalyzers 8 | . . . 1 . . . 2 . . . . . . . . . . . . 1 . 1 . . . . . . . . . 1 . . 2 . Garrison Access 14 | . . . . . . . 1 . 1 . . . . . 2 . . . . 2 . . . . . . 2 . . . . 2 . 3 1 . Total Hacks 502 | . 23 . 14 2 4 . 19 53 8 . 1 . . . 28 . . 25 . 58 . 31 3 . 17 . 50 . . 16 . 50 27 31 42 . Successful 364 | . 11 . 10 2 4 . 12 29 5 . 1 . . . 14 . . 25 . 21 . 24 1 . 17 . 35 . . 16 . 41 24 30 42 . Failed 136 | . 11 . 4 . . . 7 24 3 . . . . . 14 . . . . 37 . 7 2 . . . 14 . . . . 9 3 1 . . Catastrophic 24 | . 2 . 1 . . . 1 4 1 . . . . . 5 . . . . 8 . . 1 . . . 1 . . . . . . . . . Database Lockouts 3 | . 2 . . . . . . . . . . . . . . . . . . . . . . . . . 1 . . . . . . . . . Manual 263 | . 12 . 11 1 1 . 8 31 4 . . 4 . . 20 . . . . 34 . 15 3 . . . 33 . . 1 . 35 16 19 15 . Terminals 293 | . 21 . 11 2 . . 8 40 6 . . . . . 22 . . . . 42 . 11 3 . . . 29 . . . . 33 25 21 19 . Fabricators 32 | . . . . . . . . . . . . . . . . . . . . . . 7 . . . . 7 . . . . 4 . 7 7 . Repair Stations 42 | . . . . . . . . 8 . . . . . . 2 . . . . 5 . 6 . . . . 3 . . . . 6 2 . 10 . Recycling Units 24 | . 2 . . . . . 3 5 . . . . . . . . . . . 4 . 1 . . . . 7 . . . . 2 . . . . Scanalyzers 26 | . . . 3 . . . 6 . . . . . . . . . . . . 3 . 6 . . . . . . . . . 3 . . 5 . Garrison Access 22 | . . . . . . . 2 . 2 . . . . . 4 . . . . 4 . . . . . . 4 . . . . 2 . 3 1 . Terminal Hacks 178 | . 8 . 3 2 4 . 6 13 3 . 1 . . . 2 . . 25 . 6 . 5 1 . 17 . 9 . . 16 . 15 15 17 10 . Record 27 | . . . . . 3 . . . . . . . . . . . . 11 . . . . . . 5 . . . . 8 . . . . . . Part Schematic 21 | . . . . . . . . 2 1 . . . . . . . . 4 . 1 . 2 1 . 4 . 1 . . . . 1 1 3 . . Robot Schematic 12 | . . . . . . . . . . . . . . . . . . 7 . . . . . . . . 2 . . . . 3 . . . . Robot Analysis 9 | . 1 . . . . . . 1 . . . . . . . . . . . . . . . . 4 . . . . . . . 2 . 1 . Prototype ID Bank 19 | . 2 . . . . . 1 2 . . . . . . . . . 3 . . . . . . 4 . . . . 6 . . 1 . . . Open Door 4 | . . . . . . . . 1 . . 1 . . . . . . . . . . . . . . . . . . 2 . . . . . . Level Access Points 1 | . . . . . . . . . 1 . . . . . . . . . . . . . . . . . . . . . . . . . . . Branch Access Points 7 | . 1 . 1 . . . . . . . . . . . 1 . . . . 1 . . . . . . 1 . . . . 1 . 1 . . Machine Index 4 | . . . . . . . . . . . . . . . . . . . . . . . . . . . 1 . . . . 1 . 1 1 . Terminal Index 2 | . . . . . . . . 1 . . . . . . . . . . . 1 . . . . . . . . . . . . . . . . Scanalyzer Index 2 | . . . . . . . . . . . . . . . 1 . . . . . . 1 . . . . . . . . . . . . . . Alert Level 2 | . . . . . . . . . . . . . . . . . . . . . . . . . . . . . . . . . . 1 1 . Unreport Threat 18 | . 1 . 1 . . . . 3 . . . . . . . . . . . . . 1 . . . . 1 . . . . 6 1 2 2 . Locate Traps 19 | . 2 . . . . . 3 2 . . . . . . . . . . . 2 . . . . . . 1 . . . . 2 3 3 1 . Disarm Traps 1 | . . . . . . . . . . . . . . . . . . . . . . . . . . . . . . . . . 1 . . . Reprogram Traps 2 | . . . . . . . . . . . . . . . . . . . . . . . . . . . . . . . . . 1 . 1 . Dispatch Records 1 | . . . . 1 . . . . . . . . . . . . . . . . . . . . . . . . . . . . . . . . Recall Investigation 3 | . . . . . . . . . . . . . . . . . . . . . . 1 . . . . 1 . . . . . . 1 . . Recall Extermination 2 | . . . . . . . . . . . . . . . . . . . . . . . . . . . . . . . . 1 . . 1 . Recall Reinforcements 3 | . . . . . . . 1 . . . . . . . . . . . . . . . . . . . . . . . . . . 1 1 . Hauler Manifests 9 | . 1 . 1 . . . 1 1 1 . . . . . . . . . . 1 . . . . . . . . . . . . 1 1 1 . Registered Components 1 | . . . . . . . . . . . . . . . . . . . . . . . . . . . . . . . . . . 1 . . Registered Prototypes 1 | . . . . . . . . . . . . . . . . . . . . . . . . . . . . . . . . . . 1 . . Zone Layout 7 | . . . . 1 . . . . . . . . . . . . . . . . . . . . . . 1 . . . . . 4 1 . . EX-Prototype ID Bank 1 | . . . . . 1 . . . . . . . . . . . . . . . . . . . . . . . . . . . . . . . Fabricator Hacks 19 | . . . . . . . . . . . . . . . . . . . . . . 4 . . . . 5 . . . . 2 . 4 4 . Load Schematic 9 | . . . . . . . . . . . . . . . . . . . . . . 2 . . . . 2 . . . . 1 . 2 2 . Build 10 | . . . . . . . . . . . . . . . . . . . . . . 2 . . . . 3 . . . . 1 . 2 2 . Repair Station Hacks 37 | . . . . . . . . 7 . . . . . . 2 . . . . 4 . 4 . . . . 2 . . . . 6 2 . 10 . Scan Component 19 | . . . . . . . . 4 . . . . . . 1 . . . . 2 . 2 . . . . 1 . . . . 3 1 . 5 . Repair 18 | . . . . . . . . 3 . . . . . . 1 . . . . 2 . 2 . . . . 1 . . . . 3 1 . 5 . Recycling Unit Hacks 3 | . 1 . . . . . . . . . . . . . . . . . . . . . . . . . 2 . . . . . . . . . Report Inventory 2 | . . . . . . . . . . . . . . . . . . . . . . . . . . . 2 . . . . . . . . . Retrieve Components 1 | . 1 . . . . . . . . . . . . . . . . . . . . . . . . . . . . . . . . . . . Scanalyzer 20 | . . . 3 . . . 3 . . . . . . . . . . . . 1 . 5 . . . . . . . . . 3 . . 5 . Insert Component 15 | . . . 2 . . . 2 . . . . . . . . . . . . 1 . 3 . . . . . . . . . 2 . . 5 . Analyze 5 | . . . 1 . . . 1 . . . . . . . . . . . . . . 2 . . . . . . . . . 1 . . . . Garrison Access Hacks 11 | . . . . . . . . . 1 . . . . . 1 . . . . 2 . . . . . . 2 . . . . 1 . 3 1 . Seal Access 11 | . . . . . . . . . 1 . . . . . 1 . . . . 2 . . . . . . 2 . . . . 1 . 3 1 . Unauthorized Hacks 95 | . 2 . 4 . . . 3 9 1 . . . . . 9 . . . . 8 . 6 . . . . 14 . . . . 14 7 6 12 . Terminals 67 | . 2 . 4 . . . 1 6 1 . . . . . 8 . . . . 6 . 3 . . . . 8 . . . . 9 7 3 9 . Track 13 | . . . 2 . . . . . . . . . . . 2 . . . . . . 1 . . . . 2 . . . . 1 2 1 2 . Assimilate 10 | . . . . . . . . . 1 . . . . . 3 . . . . . . . . . . . . . . . . 2 2 . 2 . Botnet 27 | . 2 . 1 . . . 1 4 . . . . . . 2 . . . . 5 . 2 . . . . 5 . . . . 2 . 1 2 . Disrupt 14 | . . . 1 . . . . 2 . . . . . . 1 . . . . . . . . . . . . . . . . 4 3 1 2 . Operators 3 | . . . . . . . . . . . . . . . . . . . . 1 . . . . . . 1 . . . . . . . 1 . Fabricators 11 | . . . . . . . . . . . . . . . . . . . . . . 2 . . . . 1 . . . . 2 . 3 3 . Report 3 | . . . . . . . . . . . . . . . . . . . . . . . . . . . . . . . . 1 . 1 1 . Prioritize 2 | . . . . . . . . . . . . . . . . . . . . . . 1 . . . . . . . . . . . 1 . . Siphon 6 | . . . . . . . . . . . . . . . . . . . . . . 1 . . . . 1 . . . . 1 . 1 2 . Repair Stations . | . . . . . . . . . . . . . . . . . . . . . . . . . . . . . . . . . . . . . Recycling Units 15 | . . . . . . . 2 3 . . . . . . . . . . . 2 . 1 . . . . 5 . . . . 2 . . . . Monitor 1 | . . . . . . . . . . . . . . . . . . . . . . . . . . . 1 . . . . . . . . . Reject 1 | . . . . . . . . . . . . . . . . . . . . . . . . . . . 1 . . . . . . . . . Recyclers 5 | . . . . . . . 1 1 . . . . . . . . . . . 1 . . . . . . 1 . . . . 1 . . . . Mask 7 | . . . . . . . 1 1 . . . . . . . . . . . 1 . 1 . . . . 2 . . . . 1 . . . . Tunnel 1 | . . . . . . . . 1 . . . . . . . . . . . . . . . . . . . . . . . . . . . . Scanalyzers . | . . . . . . . . . . . . . . . . . . . . . . . . . . . . . . . . . . . . . Garrison Access 2 | . . . . . . . . . . . . . . . 1 . . . . . . . . . . . . . . . . 1 . . . . Reprogram 1 | . . . . . . . . . . . . . . . . . . . . . . . . . . . . . . . . 1 . . . . Jam 1 | . . . . . . . . . . . . . . . 1 . . . . . . . . . . . . . . . . . . . . . Data Cores Recovered 2 | . . . 2 . . . . . . . . . . . . . . . . . . . . . . . . . . . . . . . . . Used 1 | . . . 1 . . . . . . . . . . . . . . . . . . . . . . . . . . . . . . . . . Hacking Detections 104 | . 6 . 3 . . . 6 13 2 . . . . . 9 . . . . 18 . 4 1 . . . 10 . . . . 11 5 5 11 . Full Trace Events 7 | . . . . . . . 2 3 . . . . . . . . . . . . . . . . . . . . . . . 1 . 1 . . Feedback Events . | . . . . . . . . . . . . . . . . . . . . . . . . . . . . . . . . . . . . . Feedback Blocked . | . . . . . . . . . . . . . . . . . . . . . . . . . . . . . . . . . . . . . Robot Schematics Acquired 10 | . . . . . . . . . . . . . . . . . . 7 . . . . . . . . 1 . . . . 2 . . . . Robots Built 3 | . . . . . . . . . . . . . . . . . . . . . . . . . . . . . . . . . . . 3 . Matter 526 | . . . . . . . . . . . . . . . . . . . . . . . . . . . . . . . . . . . 526 . Time 249 | . . . . . . . . . . . . . . . . . . . . . . . . . . . . . . . . . . . 249 . Total Robot Build Rating 21 | . . . . . . . . . . . . . . . . . . . . . . . . . . . . . . . . . . . 21 . Part Schematics Acquired 25 | . . . 1 . . . 1 2 1 . . . . . . . . 4 . 1 . 3 1 . 4 . 1 . . . . 2 1 3 . . Parts Built 8 | . . . . . . . . . . . . . . . . . . . . . . 2 . . . . 3 . . . . 1 . 2 . . Matter 1917 | . . . . . . . . . . . . . . . . . . . . . . 444 . . . . 685 . . . . 263 . 525 . . Time 492 | . . . . . . . . . . . . . . . . . . . . . . 129 . . . . 239 . . . . 62 . 62 . . Total Part Build Rating 52 | . . . . . . . . . . . . . . . . . . . . . . 11 . . . . 20 . . . . 7 . 14 . . Parts Repaired 18 | . . . . . . . . 3 . . . . . . 1 . . . . 2 . 2 . . . . 1 . . . . 3 1 . 5 . Time 813 | . . . . . . . . 287 . . . . . . 49 . . . . 74 . 90 . . . . 26 . . . . 77 33 . 177 . Parts Recycled . | . . . . . . . . . . . . . . . . . . . . . . . . . . . . . . . . . . . . . Recycled Matter . | . . . . . . . . . . . . . . . . . . . . . . . . . . . . . . . . . . . . . Retrieved Matter . | . . . . . . . . . . . . . . . . . . . . . . . . . . . . . . . . . . . . . Retrieved Components 9 | . 9 . . . . . . . . . . . . . . . . . . . . . . . . . . . . . . . . . . . Parts Scanalyzed 5 | . . . 1 . . . 2 . . . . . . . . . . . . 1 . . . . . . . . . . . 1 . . . . Part Schematics Acquired 4 | . . . 1 . . . 1 . . . . . . . . . . . . . . 1 . . . . . . . . . 1 . . . . Parts Damaged 2 | . . . . . . . . . . . . . . . . . . . . . . 1 . . . . . . . . . 1 . . . . Bothacking | -11 -10 -10 -9 -9 -9 -8 -8 -8 -7 -7 -7 -7 -7 -6 -6 -6 -6 -6 -5 -5 -5 -5 -5 -5 -5 -4 -4 -4 -4 -4 -3 -3 -3 -2 -2 -2 ------------ Run | Scr Mat Min Mat Min Exi Min Mat Sto Fac Low Low Zio Dee Pro Fac Low Low Dat Pro Fac Was Fac Upp Upp Zhi Pro Fac Upp Upp War Pro Res Qua Res Tes Sec Used RIF Installer . | . . . . . . . . . . . . . . . . . . . . . . . . . . . . . . . . . . . . . Robots Hacked . | . . . . . . . . . . . . . . . . . . . . . . . . . . . . . . . . . . . . . Non-combat . | . . . . . . . . . . . . . . . . . . . . . . . . . . . . . . . . . . . . . Combat . | . . . . . . . . . . . . . . . . . . . . . . . . . . . . . . . . . . . . . Robot Hacks Applied . | . . . . . . . . . . . . . . . . . . . . . . . . . . . . . . . . . . . . . Relay Couplers Released 5 | . . . . . . . 2 . . . . . . . . . . . . . . . . . . . . . . . . . . 3 . . Machine Destruction 5 | . . . . . . . 2 . . . . . . . . . . . . . . . . . . . . . . . . . . 3 . . Robots Rewired 1 | . . . . . . . . . . . . . . . . . . . . 1 . . . . . . . . . . . . . . . . Allies Hacked 1 | . . . . . . . . . . . . . . . . . . . . . . . . . . . . . . . . . 1 . . . Hacks Repelled . | . . . . . . . . . . . . . . . . . . . . . . . . . . . . . . . . . . . . . Allies | -11 -10 -10 -9 -9 -9 -8 -8 -8 -7 -7 -7 -7 -7 -6 -6 -6 -6 -6 -5 -5 -5 -5 -5 -5 -5 -4 -4 -4 -4 -4 -3 -3 -3 -2 -2 -2 -------- Run | Scr Mat Min Mat Min Exi Min Mat Sto Fac Low Low Zio Dee Pro Fac Low Low Dat Pro Fac Was Fac Upp Upp Zhi Pro Fac Upp Upp War Pro Res Qua Res Tes Sec Total Allies 54 | . . . . . . . . 11 1 . . 3 . . 3 . . . . 1 20 . . . . . . . . . . 2 2 . 11 . Largest Group 20 | . . . . . . . . 10 1 . . 3 3 . 2 . . . . 1 20 2 . . . . . . . . . 2 2 . 8 . Highest-Rated Group 864 | . . . . . . . . 173 26 . . 65 65 . 36 . . . . 36 864 50 . . . . . . . . . 88 70 . 178 . Highest-Rated Ally 99 | . . . . . . . . 99 26 . . 25 25 . 26 . . . . 36 50 25 . . . . . . . . . 44 44 . 48 . Total Orders 7 | . . . . . . . . 6 . . . . . . . . . . . 1 . . . . . . . . . . . . . . . . STAY 4 | . . . . . . . . 4 . . . . . . . . . . . . . . . . . . . . . . . . . . . . GOTO 2 | . . . . . . . . 1 . . . . . . . . . . . 1 . . . . . . . . . . . . . . . . FOLLOW 1 | . . . . . . . . 1 . . . . . . . . . . . . . . . . . . . . . . . . . . . . Ally Attacks 108 | . . . . . . . . 36 . . . . 27 . . . . . . 7 . 7 . . . . . . . . . . . . 31 . Total Damage 2402 | . . . . . . . . 693 . . . . 590 . . . . . . 216 . 113 . . . . . . . . . . . . 790 . Kills 15 | . . . . . . . . 5 . . . . 2 . . . . . . 2 . 1 . . . . . . . . . . . . 5 . Allies Corrupted 2 | . . . . . . . . . . . . . . . 1 . . . . . . . . . . . . . . . . . 1 . . . Allies Melted . | . . . . . . . . . . . . . . . . . . . . . . . . . . . . . . . . . . . . . Intel | -11 -10 -10 -9 -9 -9 -8 -8 -8 -7 -7 -7 -7 -7 -6 -6 -6 -6 -6 -5 -5 -5 -5 -5 -5 -5 -4 -4 -4 -4 -4 -3 -3 -3 -2 -2 -2 ------- Run | Scr Mat Min Mat Min Exi Min Mat Sto Fac Low Low Zio Dee Pro Fac Low Low Dat Pro Fac Was Fac Upp Upp Zhi Pro Fac Upp Upp War Pro Res Qua Res Tes Sec Robot Analysis Total 9 | . 1 . . . . . . 1 . . . . . . . . . . . . . . . . 4 . . . . . . . 2 . 1 . Derelict Logs Recovered 14 | . . 2 . 1 . . . . . . . 2 . 1 . 1 . . . . . . 2 1 . 1 . . 3 . . . . . . . Drone Launches 19 | . . . . . . . . 16 . . . . . . . . . . . . . . 3 . . . . . . . . . . . . . Drone Recoveries . | . . . . . . . . . . . . . . . . . . . . . . . . . . . . . . . . . . . . . Exploration | -11 -10 -10 -9 -9 -9 -8 -8 -8 -7 -7 -7 -7 -7 -6 -6 -6 -6 -6 -5 -5 -5 -5 -5 -5 -5 -4 -4 -4 -4 -4 -3 -3 -3 -2 -2 -2 ------------- Run | Scr Mat Min Mat Min Exi Min Mat Sto Fac Low Low Zio Dee Pro Fac Low Low Dat Pro Fac Was Fac Upp Upp Zhi Pro Fac Upp Upp War Pro Res Qua Res Tes Sec Turns Passed 18908 | 24 1296 274 1340 228 1816 440 1197 3753 412 105 164 430 1833 85 384 58 58 62 45 624 94 460 68 45 95 101 715 90 87 308 76 828 184 304 823 2 Spaces Moved 22896 | 11 598 109 540 103 846 115 414 1283 627 265 455 926 1959 238 1047 280 229 164 187 1767 215 1306 311 195 221 307 1698 292 341 856 340 1654 553 1112 1330 2 Core 154 | . . . . . . . . . . . . . . . . . . . . . . . . . . . . . . 1 . . . . 151 2 Treads 4177 | . 405 95 540 103 846 115 414 1283 16 . . . 360 . . . . . . . . . . . . . . . . . . . . . . . Legs 204 | 11 193 . . . . . . . . . . . . . . . . . . . . . . . . . . . . . . . . . . . Wheels 14 | . . 14 . . . . . . . . . . . . . . . . . . . . . . . . . . . . . . . . . . Hover . | . . . . . . . . . . . . . . . . . . . . . . . . . . . . . . . . . . . . . Flight 18347 | . . . . . . . . . 611 265 455 926 1599 238 1047 280 229 164 187 1767 215 1306 311 195 221 307 1698 292 341 855 340 1654 553 1112 1179 . Fastest Speed 16 | 120 120 110 160 180 180 200 200 200 32 32 32 32 16 32 16 16 16 16 16 16 16 16 20 20 20 20 20 20 20 20 20 20 20 20 20 50 Average Speed 55 | 120 155 153 178 180 191 200 207 213 37 32 32 32 58 32 24 16 16 24 16 18 16 20 20 20 23 20 20 20 20 20 20 21 20 20 30 50 Slowest Speed 260 | 120 160 160 180 180 200 200 260 220 220 32 32 32 180 32 32 16 16 32 16 20 16 100 20 20 40 20 20 20 20 75 20 40 20 20 100 50 Overloaded Moves . | . . . . . . . . . . . . . . . . . . . . . . . . . . . . . . . . . . . . . Propulsion Burnouts . | . . . . . . . . . . . . . . . . . . . . . . . . . . . . . . . . . . . . . Robots Hopped 230 | . . . . . . . . . 19 . . . . . 34 . . 2 1 58 1 46 2 . . . 8 . . 4 . 5 17 14 19 . Cave-ins Triggered . | . . . . . . . . . . . . . . . . . . . . . . . . . . . . . . . . . . . . . Teleports 1 | . . . . . . . . . . . . . . . . . . . . . . . . . 1 . . . . . . . . . . . Exploration Rate (%) 52 | 2 92 27 47 19 68 30 35 96 18 38 68 85 84 50 29 44 49 77 52 50 88 26 53 49 60 60 40 45 57 92 58 32 92 27 90 1 Regions Visited 36 Branch Regions 25 Pre-discovered Areas 12 | . . 1 . . 1 . . 2 . . . 1 . . . . . 1 . . . . . . 3 1 . . 2 . . . . . . . Known Exits Taken 11 | . 1 . 1 . . 1 1 . 1 . . . . 1 1 . . . . . . 1 . . . . 1 . . . . 1 . 1 . . Unknown Exits Taken 23 | 1 . 1 . 1 1 . . 1 . 1 1 1 1 . . 1 1 1 1 . . . 1 1 1 1 . 1 1 1 1 . 1 . 1 . Scrap Searched 21 | . . 2 . . . 1 . . . 1 1 4 . 1 . 1 1 . 1 . . . 2 3 . 1 . . 2 . . . . . . . Spaces Dug 309 | . 2 . . . . 1 . 5 1 21 22 . 12 3 18 3 6 . 5 33 . 39 . . . 9 37 8 6 4 2 50 6 9 7 . Terrain Destroyed 506 | . 2 . . . 18 46 5 34 1 87 22 . 14 3 18 3 6 . 5 33 . 39 . . . 9 37 8 6 4 2 68 6 9 21 . Melee 239 | . 2 . . . . 1 . 5 1 1 3 . 12 3 18 3 6 . 5 33 . 8 . . . 9 37 8 6 4 2 50 6 9 7 . Projectile 22 | . . . . . . 11 5 3 . . . . 2 . . . . . . . . 1 . . . . . . . . . . . . . . AOE 245 | . . . . . 18 34 . 26 . 86 19 . . . . . . . . . . 30 . . . . . . . . . 18 . . 14 . Actions | -11 -10 -10 -9 -9 -9 -8 -8 -8 -7 -7 -7 -7 -7 -6 -6 -6 -6 -6 -5 -5 -5 -5 -5 -5 -5 -4 -4 -4 -4 -4 -3 -3 -3 -2 -2 -2 --------- Run | Scr Mat Min Mat Min Exi Min Mat Sto Fac Low Low Zio Dee Pro Fac Low Low Dat Pro Fac Was Fac Upp Upp Zhi Pro Fac Upp Upp War Pro Res Qua Res Tes Sec Total 27237 | 14 813 174 782 120 982 234 607 1979 771 278 467 1061 2529 241 1112 287 240 182 193 1938 273 1443 313 199 245 332 1997 310 349 982 344 2039 593 1162 1650 2 Wait 2548 | . 77 28 105 3 4 45 62 389 92 . 1 122 248 1 72 5 6 11 . 109 58 121 4 . . 17 243 11 1 90 1 289 34 46 253 . Move 22437 | 10 597 108 539 102 845 114 413 1282 592 264 454 925 1958 237 983 279 228 159 184 1659 212 1221 307 194 220 306 1681 291 340 850 339 1643 519 1086 1294 2 Hop 194 | . . . . . . . . . 15 . . . . . 29 . . 2 1 50 1 38 1 . . . 8 . . 1 . 5 16 11 16 . Pick Up 256 | . 22 3 22 1 30 2 18 27 2 . . 5 64 . 1 . . 2 . 7 1 14 . 1 1 . 6 . 1 4 . 11 5 1 5 . Fast Attach 118 | . 4 1 7 . 6 4 7 13 4 1 3 1 19 . 3 . . . . 4 . 5 . 2 7 . 1 . . 10 . 4 2 3 7 . Attach 128 | . 2 5 5 . 6 2 11 8 12 3 1 3 22 . 1 . . 3 1 8 . 4 . 1 . . 3 . . 2 1 16 1 1 6 . Detach 41 | . . . . . 2 . 3 4 2 3 1 . 4 . . . . . 2 5 . 4 . . . . . . . 1 1 4 . 2 3 . Swap 81 | . 11 4 3 . 9 4 3 23 2 . . . 4 . 1 . . . . . . 2 . . . . 4 . . 2 . 3 . . 6 . Drop 328 | . 15 . 19 1 41 6 7 40 26 . 3 5 86 . 2 . . 4 . 2 1 19 . 1 6 . 6 . 1 17 . 8 3 2 7 . Fire 588 | 4 74 25 80 13 3 53 80 172 9 6 1 . 62 . . . . . . . . 3 . . . . . . . . . 2 . . 1 . Melee 434 | . 9 . . . 36 4 1 9 8 1 3 . 62 3 20 3 6 1 5 47 . 12 . . 11 9 45 8 6 5 2 54 9 10 45 . Ram 1 | . . . . . . . . . . . . . . . . . . . . . . . . . . . . . . . . . . . 1 . Kick . | . . . . . . . . . . . . . . . . . . . . . . . . . . . . . . . . . . . . . Crush 9 | . 2 . 2 . . . 2 3 . . . . . . . . . . . . . . . . . . . . . . . . . . . . Escape Stasis 38 | . . . . . . . . . 7 . . . . . . . . . . 21 . . . . . . . . . . . . 4 . 6 . Rewire 27 | . . . . . . . . 1 . . . . . . . . . . . 26 . . . . . . . . . . . . . . . . Trap . | . . . . . . . . . . . . . . . . . . . . . . . . . . . . . . . . . . . . . Miscellaneous 9 | . . . . . . . . 8 . . . . . . . . . . . . . . 1 . . . . . . . . . . . . . Route ------- -11/Scrapyard -10/Materials (discovered 4 exits: *Mat x3 / *Min) -10/Mines -9/Materials (discovered 2 exits: *Min x2) -9/Mines (discovered 2 exits: *Mat / *Exi) -9/Exiles -8/Mines -8/Materials -8/Storage -7/Factory (discovered 5 exits: Fac x4 / *Low) -7/Lower Caves -7/Lower Caves (discovered 2 exits: *Fac / *Zio) -7/Zion (discovered 2 exits: [*Dee] / [*Pro]) -7/Deep Caves -6/Proximity Caves -6/Factory (discovered 4 exits: *Fac x2 / *Low x2) -6/Lower Caves -6/Lower Caves -6/Data Miner -5/Proximity Caves -5/Factory (discovered 4 exits: *Fac x2 / *Upp x2) -5/Waste -5/Factory -5/Upper Caves -5/Upper Caves -5/Zhirov -4/Proximity Caves -4/Factory (discovered 6 exits: *Res x2 / *Upp x2 / Ext x2) -4/Upper Caves -4/Upper Caves -4/Warlord -3/Proximity Caves -3/Research (discovered 4 exits: *Res / Arm / *Qua x2) -3/Quarantine -2/Research (discovered 3 exits: [*Acc] / *Tes x2) -2/Testing -2/Section 7 History --------- Turn | Location | Event 13 | -11/Scrapyard | Discovered new exit (range 3) 25 | -11/Scrapyard | Entered Materials 320 | -10/Materials | Build established: Mutant 324 | -10/Materials | Identified exit to Mines 444 | -10/Materials | Discovered new exit (range 13) 576 | -10/Materials | Central database locked down 802 | -10/Materials | Discovered new exit (range 15) 1155 | -10/Materials | Discovered new exit (range 5) 1321 | -10/Materials | Entered Mines 1322 | -10/Mines | Assembled infested the area 1322 | -10/Mines | Met a Derelict bent on vengeance 1327 | -10/Mines | Assisted by a Guerilla fighting off Assembled 1351 | -10/Mines | Core integrity fell below 50% 1418 | -10/Mines | Core integrity fell below 20% 1429 | -10/Mines | Lost 4 parts (2n2w) 1542 | -10/Mines | Learned location of Zion (-7) 1575 | -10/Mines | Discovered new exit (range 8) 1595 | -10/Mines | Entered Materials 1595 | -9/Materials | Evolved 2 slots: Utility x2 2122 | -9/Materials | Identified exit to Mines 2243 | -9/Materials | Build established: Hauler-Mutant 2935 | -9/Materials | Entered Mines 2957 | -9/Mines | Received a Rocket Launcher from a helpful Derelict 3076 | -9/Mines | Identified exit to Materials 3091 | -9/Mines | Discovered new exit (range 13) 3155 | -9/Mines | Deemed a non-threat by the Exiles lab entrance 3163 | -9/Mines | Entered Exiles 3190 | -9/Exiles | Discovered new exit (range 15) 3212 | -9/Exiles | Met 8R-AWN 3239 | -9/Exiles | Met EX-HEX 3315 | -9/Exiles | Met EX-DEC 3770 | -9/Exiles | Met EX-BIN 3792 | -9/Exiles | Aligned with FarCom system 3794 | -9/Exiles | Given EX-Vault access code 3844 | -9/Exiles | Opened EX-Vault 3854 | -9/Exiles | Found Firepult 3859 | -9/Exiles | Found Cloak of Protection 3904 | -9/Exiles | Warned to stay clear of 0b10 Research branches 4358 | -9/Exiles | Build established: Mutant 4444 | -9/Exiles | Attacked by the Exiles 4485 | -9/Exiles | Core integrity fell below 50% 4564 | -9/Exiles | Destroyed 8R-AWN 4571 | -9/Exiles | Found Prototype Protection 4571 | -9/Exiles | Identified 8R-AWN's Armor/EX 4573 | -9/Exiles | Found 8R-AWN's Armor/TH 4714 | -9/Exiles | Found Prototype Processor 4719 | -9/Exiles | Found 8R-AWN's Boregun 4936 | -9/Exiles | Build established: Hauler-Mutant 4979 | -9/Exiles | Entered Mines 5040 | -8/Mines | CL-ANK came to Exiles' defense 5073 | -8/Mines | Found Prototype Impact Weapon 5237 | -8/Mines | Discovered exit to Materials (range 12) 5350 | -8/Mines | Destroyed CL-ANK 5419 | -8/Mines | Entered Materials 5419 | -8/Materials | Evolved 2 slots: Utility x2 5420 | -8/Materials | Identified exit to Storage 6036 | -8/Materials | Identified Exp. Targeting Computer 6171 | -8/Materials | Garrison activated, responded to threat 6541 | -8/Materials | Identified CL-ANK's Mallet 6616 | -8/Materials | Entered Storage 6697 | -8/Storage | Build established: Scavenger-Mutant 6861 | -8/Storage | Repaired Gravity Neutralizing Apparatus? 7174 | -8/Storage | Build established: Hauler-Mutant 8225 | -8/Storage | Met 01-MTF 8316 | -8/Storage | Destroyed 01-MTF 8338 | -8/Storage | Found Prototype Device 8338 | -8/Storage | Identified 01-MTF's Autohacker 8663 | -8/Storage | Assisted by bots powering up and referring to "LRC-V3" 8795 | -8/Storage | Learned location of Armory (-3) 8913 | -8/Storage | Discovered new exit (range 5) 8970 | -8/Storage | Build established: Commander-Mutant 9765 | -8/Storage | Repaired Centrium Light Armor Plating 9864 | -8/Storage | Repaired Mni. Fusion Reactor 10369 | -8/Storage | Entered Factory 10369 | -7/Factory | Evolved 2 slots: Utility x2 10507 | -7/Factory | Discovered new exit (range 7) 10520 | -7/Factory | Identified exit to Factory 10653 | -7/Factory | Identified exit to Lower Caves 10781 | -7/Factory | Entered Lower Caves 10830 | -7/Lower Caves | Destroyed 7 combat bots 10885 | -7/Lower Caves | Discovered new exit (range 5) 10886 | -7/Lower Caves | Entered another Lower Caves area 10887 | -7/Lower Caves | Discovered exit to Factory (range 6) 10893 | -7/Lower Caves | Encountered a Warlord checkpoint 11049 | -7/Lower Caves | Discovered new exit (range 6) 11050 | -7/Lower Caves | Entered Zion 11070 | -7/Zion | Received a hallucinogenic algorithm 11072 | -7/Zion | Discovered new exit (range 10) 11076 | -7/Zion | Gained Derelict followers 11110 | -7/Zion | Learned 4 Factory zone layouts 11155 | -7/Zion | Learned Factory terminal intel 11253 | -7/Zion | Acquired unknown access codes intercepted by a Zionite 11287 | -7/Zion | Learned location of Quarantine (-3) 11400 | -7/Zion | Opened final containment barrier to the Deep Caves 11405 | -7/Zion | Discovered new exit (range 3) 11405 | -7/Zion | Saw the warning signs outside the Deep Caves entrance 11480 | -7/Zion | Entered Deep Caves 11480 | -7/Deep Caves | Accompanied by 3 allies 11612 | -7/Deep Caves | Attacked by Z-Imprinter 11677 | -7/Deep Caves | Found Prototype Device 11677 | -7/Deep Caves | Identified Zio. Metafield Generator 11827 | -7/Deep Caves | Z-Facility disabled 12045 | -7/Deep Caves | Discovered new exit (range 6) 12080 | -7/Deep Caves | Found Prototype Protection 12081 | -7/Deep Caves | Found Prototype Protection 12082 | -7/Deep Caves | Found Prototype Protection 12084 | -7/Deep Caves | Found Prototype Protection 12312 | -7/Deep Caves | Identified Zio. Heavy Carapace 12320 | -7/Deep Caves | Identified Zio. Weapon Casing 12412 | -7/Deep Caves | Spotted as-68782 12454 | -7/Deep Caves | Destroyed as-68782 12531 | -7/Deep Caves | Build established: Scavenger-Mutant 12735 | -7/Deep Caves | Triggered Deep Caves wall 12735 | -7/Deep Caves | Spotted AS-86884 12738 | -7/Deep Caves | Spotted AS-61419 12761 | -7/Deep Caves | Destroyed AS-61419 12793 | -7/Deep Caves | Destroyed AS-86884 12795 | -7/Deep Caves | Lost 3 parts (1p1n1u) 12796 | -7/Deep Caves | Destroyed 37 combat bots 12800 | -7/Deep Caves | Triggered Deep Caves wall 12833 | -7/Deep Caves | Found Mobile Assembly Unit 12847 | -7/Deep Caves | Exposed GOLEM chamber 12893 | -7/Deep Caves | Found GOLEM Unit 12927 | -7/Deep Caves | Found GOLEM Unit 13313 | -7/Deep Caves | Entered Proximity Caves 13338 | -6/Proximity Caves | Spotted B-75 Beast 13354 | -6/Proximity Caves | Learned Factory garrison access intel 13374 | -6/Proximity Caves | Attracted the attention of an 0b10 checkpoint 13397 | -6/Proximity Caves | Discovered exit to Factory (range 4) 13398 | -6/Proximity Caves | Entered Factory 13398 | -6/Factory | Evolved 2 slots: Power x1, Utility x1 13399 | -6/Factory | Identified exit to Lower Caves 13400 | -6/Factory | Loaded intel: 20 terminal locations 13401 | -6/Factory | Loaded intel: 4 garrison access locations 13425 | -6/Factory | Build established: Sprinter 13514 | -6/Factory | Discovered new exit (range 11) 13571 | -6/Factory | Repaired Mni. Fusion Reactor 13585 | -6/Factory | Spotted B-75 Beast 13625 | -6/Factory | Discovered new exit (range 15) 13782 | -6/Factory | Entered Lower Caves 13837 | -6/Lower Caves | Discovered new exit (range 4) 13839 | -6/Lower Caves | Learned 8 Factory zone layouts 13840 | -6/Lower Caves | Entered another Lower Caves area 13896 | -6/Lower Caves | Discovered new exit (range 15) 13898 | -6/Lower Caves | Entered Data Miner 13898 | -6/Data Miner | Discovered new exit (range 6) 13902 | -6/Data Miner | Met Data Miner 13925 | -6/Data Miner | Learned location of Section 7 (-2) 13925 | -6/Data Miner | Acquired the access code to Warlord's prototype stash 13930 | -6/Data Miner | Received God Mode back door access code from Data Miner 13958 | -6/Data Miner | Data Conduit disabled 13960 | -6/Data Miner | Entered Proximity Caves 14003 | -5/Proximity Caves | Discovered new exit (range 9) 14005 | -5/Proximity Caves | Entered Factory 14005 | -5/Factory | Evolved 2 slots: Utility x2 14017 | -5/Factory | Discovered new exit (range 14) 14030 | -5/Factory | Discovered new exit (range 3) 14057 | -5/Factory | Identified exit to Upper Caves 14296 | -5/Factory | Discovered new exit (range 8) 14427 | -5/Factory | Repaired Mni. Fusion Reactor 14454 | -5/Factory | Repaired Imp. Flight Unit? 14629 | -5/Factory | Manually triggered Chute Trap 14629 | -5/Factory | Sucked down chute 14629 | -5/Factory | Entered Waste 14630 | -5/Waste | Joined by Warlord forces that had cleared the area 14718 | -5/Waste | Discovered new exit (range 12) 14723 | -5/Waste | Entered Factory 14723 | -5/Factory | Accompanied by 2 allies 14804 | -5/Factory | Fabricated Exp. Utility Shielding (x1) 14845 | -5/Factory | Discovered exit to Upper Caves (range 15) 14893 | -5/Factory | Build established: Hacker-Sprinter 14894 | -5/Factory | Repaired Nuclear Pulse Array? 15052 | -5/Factory | Repaired Broken Mni. Fusion Reactor? 15128 | -5/Factory | Local fabrication network quarantined 15132 | -5/Factory | Fabricated Adv. Hacking Suite? 15183 | -5/Factory | Entered Upper Caves 15200 | -5/Upper Caves | Encountered a Warlord checkpoint 15215 | -5/Upper Caves | Learned Factory garrison access intel 15226 | -5/Upper Caves | Learned Factory trap positions 15239 | -5/Upper Caves | Discovered new exit (range 24) 15251 | -5/Upper Caves | Attracted the attention of an 0b10 checkpoint 15251 | -5/Upper Caves | Entered another Upper Caves area 15267 | -5/Upper Caves | Learned Factory stockpile data 15294 | -5/Upper Caves | Discovered new exit (range 9) 15296 | -5/Upper Caves | Entered Zhirov 15296 | -5/Zhirov | Discovered new exit (range 3) 15300 | -5/Zhirov | Met Zhirov 15304 | -5/Zhirov | Learned location of Testing (-2) 15304 | -5/Zhirov | Learned location of Command (-1) 15306 | -5/Zhirov | Zhirov requested help retrieving the SGEMP Prototype 15309 | -5/Zhirov | Found Alien Artifact 15309 | -5/Zhirov | Identified Integrated Dissipator 15309 | -5/Zhirov | Installed Integrated Dissipator, increased core heat dissipation (+2%) 15363 | -5/Zhirov | Found Alien Artifact 15363 | -5/Zhirov | Identified Transdimensional Reconstructor 15363 | -5/Zhirov | Warped through subspace 15391 | -5/Zhirov | Entered Proximity Caves 15417 | -4/Proximity Caves | Spotted B-86 Titan 15492 | -4/Proximity Caves | Discovered new exit (range 5) 15492 | -4/Proximity Caves | Entered Factory 15492 | -4/Factory | Evolved 2 slots: Utility x2 15493 | -4/Factory | Identified exit to Extension 15494 | -4/Factory | Loaded intel: 119 trap records 15496 | -4/Factory | Loaded intel: 3 garrison access locations 15563 | -4/Factory | Found Prototype Hackware 15649 | -4/Factory | Repaired Exp. Utility Shielding 15734 | -4/Factory | Identified Exp. Hacking Suite 15908 | -4/Factory | Fabricated Inertial Stasis Machine? 16003 | -4/Factory | Fabricated Inertial Stasis Machine (x1) 16058 | -4/Factory | Fabricated Adv. System Shield (x1) 16123 | -4/Factory | Discovered new exit (range 10) 16140 | -4/Factory | Identified exit to Upper Caves 16170 | -4/Factory | Central database locked down 16188 | -4/Factory | Discovered new exit (range 10) 16207 | -4/Factory | Entered Upper Caves 16232 | -4/Upper Caves | Spotted B-86 Titan 16242 | -4/Upper Caves | Attracted the attention of an 0b10 checkpoint 16297 | -4/Upper Caves | Discovered new exit (range 2) 16297 | -4/Upper Caves | Entered another Upper Caves area 16306 | -4/Upper Caves | Spotted B-86 Titan 16310 | -4/Upper Caves | Learned 8 Research zone layouts 16383 | -4/Upper Caves | Discovered new exit (range 4) 16384 | -4/Upper Caves | Attracted the attention of an 0b10 checkpoint 16384 | -4/Upper Caves | Entered Warlord 16391 | -4/Warlord | System corruption cleaned by Quarantine Array 16431 | -4/Warlord | Received a Watcher feed algorithm from an ecstatic Tinkerer 16484 | -4/Warlord | Visited the Vortex Lab 16487 | -4/Warlord | Warlord's base attacked by MAIN.C 16497 | -4/Warlord | Met Warlord 16499 | -4/Warlord | Opened Warlord's prototype stash 16511 | -4/Warlord | Found Prototype Device 16511 | -4/Warlord | Identified Exp. Phase Shifter 16517 | -4/Warlord | Found Prototype Hackware 16520 | -4/Warlord | Found Prototype Reactor 16520 | -4/Warlord | Identified Vortex Chain Reactor 16570 | -4/Warlord | Opened side exit 16686 | -4/Warlord | Discovered new exit (range 8) 16692 | -4/Warlord | Entered Proximity Caves 16754 | -3/Proximity Caves | Spotted B-86 Titan 16765 | -3/Proximity Caves | Discovered new exit (range 16) 16768 | -3/Proximity Caves | Entered Research 16768 | -3/Research | Evolved 2 slots: Utility x2 16769 | -3/Research | Identified exit to Quarantine 16772 | -3/Research | Identified System Mapper 16788 | -3/Research | Lost 3 parts (1n2u) 16790 | -3/Research | Found Enh. Force Lance 16793 | -3/Research | Found Enh. Force Lance 16849 | -3/Research | Spotted B-86 Titan 16909 | -3/Research | Discovered new exit (range 5) 16921 | -3/Research | Identified exit to Armory 16978 | -3/Research | Spotted B-90 Cyclops 17349 | -3/Research | Fabricated Mni. Fusion Reactor (x1) 17461 | -3/Research | Local fabrication network quarantined 17503 | -3/Research | Repaired Gravity Neutralizing Apparatus 17521 | -3/Research | Repaired Nuclear Pulse Array 17555 | -3/Research | Repaired Mni. Fusion Reactor 17596 | -3/Research | Entered Quarantine 17637 | -3/Quarantine | Repaired Mni. Fusion Reactor 17681 | -3/Quarantine | Discovered new exit (range 12) 17691 | -3/Quarantine | Found Alien Artifact 17717 | -3/Quarantine | Found Alien Artifact 17748 | -3/Quarantine | Cryocooling Duct disabled 17763 | -3/Quarantine | Ambient heat levels rising (+20) 17763 | -3/Quarantine | Non-combat units ordered to evacuate 17780 | -3/Quarantine | Entered Research 17780 | -2/Research | Warlord forces began assault on 0b10 17780 | -2/Research | Evolved 2 slots: Utility x2 17805 | -2/Research | Identified exit to Testing 17853 | -2/Research | Fabricated Exp. Utility Shielding (x1) 17871 | -2/Research | Spotted B-90 Cyclops 17890 | -2/Research | Fabricated Dimensional Manipulator? 17890 | -2/Research | Research machine network offline 17899 | -2/Research | Met up with Warlord 17969 | -2/Research | Discovered new exit (range 3) 18061 | -2/Research | Spotted B-90 Cyclops 18084 | -2/Research | Entered Testing 18086 | -2/Testing | Identified Core Reset Matrix 18086 | -2/Testing | Identified Subatomic Replicator 18118 | -2/Testing | Found Prototype Processor 18120 | -2/Testing | Identified Exp. Melee Analysis Suite 18134 | -2/Testing | Found System Mapper 18171 | -2/Testing | Repaired Nuclear Pulse Array 18206 | -2/Testing | Repaired Inertial Stasis Machine 18235 | -2/Testing | Spotted PL-TM6643GRRD 18320 | -2/Testing | Discovered new exit (range 15) 18418 | -2/Testing | Lost 3 parts (3u) 18469 | -2/Testing | Scanned by Researcher 18553 | -2/Testing | Repaired Nuclear Pulse Array 18604 | -2/Testing | Repaired Inertial Stasis Machine 18653 | -2/Testing | Repaired Inertial Stasis Machine 18693 | -2/Testing | Build established: Wizard-Mutant 18783 | -2/Testing | Local fabrication network quarantined 18798 | -2/Testing | Fabricated L-61 Swordsman? 18811 | -2/Testing | Used Core Reset Matrix 18814 | -2/Testing | Used Subatomic Replicator to replicate Mobile Assembly Unit 18858 | -2/Testing | Lost 11 parts (2p1n7u1w) 18860 | -2/Testing | Spotted Fortress 18863 | -2/Testing | Core integrity fell below 50% 18889 | -2/Testing | Emitted hypermatrix ping 18894 | -2/Testing | Assembled emerged from beneath the floor 18895 | -2/Testing | Discovered new exit (range 5) 18907 | -2/Testing | Entered Section 7 18907 | -2/Section 7 | Accompanied by 4 allies 18908 | -2/Section 7 | Emitted hypermatrix ping 18908 | -2/Section 7 | Sensed 21 artifacts in vicinity 18909 | -2/Section 7 | Self-destructed Last Messages --------------- 18862_ System Mapper destroyed. 18862_ Adv. Hacking Suite destroyed. 18862_ Knocked back. 18865_ Machine disabled. 18865_ Knocked back. 18885_ C-30 ARC bursts open, deploying its payload. 18885_ L-61 Swordsman unfolds itself. 18885_ G-73 Enforcer unfolds itself. 18889_ Emitted hypermatrix ping. 18889_ System Shield destroyed. 18892_ Adv. Hacking Suite destroyed. 18894_ Assembled emerge from beneath the floor. 18894_ G-73 Enforcer shuts down. 18895_ as-72383 destroyed. 18895_ EXIT=FOUND 18895_ as-99302 suffers critical hit. LOCATION=UNKNOWN GOAL=ESCAPE 18908_ Emitted hypermatrix ping. 18908_ Sensed 21 artifacts in vicinity. Map ----- +----------------------------------------------------+ | | | | | | | | | | | | | | | | | | | | | ???????????????????????????????????????? | | ???????????????????????????????????????? | | ???????????????????????????????????????? | | ???????????????????????????????????????? | | ???????????????????????????????????????? | | ??????????#####????????????????????????? | | ??????????# ????????????????????????? | | ??????????# ????????????????????????? | | ??????????# """ #???????????????????? | | ??????????# """ #???????????????????? | | ??????????# #???????????????????? | | ??????????# ] """ #???????????????????? | | ??????????# """ #???????????????????? | | ??????????? """ #???????????????????? | | ????????????? ?????????????????????? | | ???????????####@####???????????????????? | | ???????????# a #???????????????????? | | ???????????# aa #???????????????????? | | ???????????# a #???????????????????? | | ???????????# ??????????????????? | | ???????????# ######?????????????????? | | ???????????# #??????????????????????? | | ???????????# #??????????????????????? | | ???????????# #??????????????????????? | | ???????????+ ???????????????????????? | | ???????????# ???????????????????????? | | ???????????# ???????????????????????? | | ???????????#### ???????????????????????? | | ??????????????# ???????????????????????? | | ??????????????? ???????????????????????? | | ??????????????? ???????????????????????? | | ???????????????????????????????????????? | | ???????????????????????????????????????? | | ???????????????????????????????????????? | | ?????????????????????????!?????????????? | | ???????????????????????????????????????? | | ???????????????????????????????????????? | | ???????????????????????????????????????? | | ???????????????????????????????????????? | | ???????????????????????????????????????? | +----------------------------------------------------+ Best States ------------- Heat Dissipation 69 Energy Generation 55 Energy Capacity 1240 Matter Stores 300 Matter Capacity 300 Sight Range 16 Terrain Scan Density 10 Additional Mass Support 58 Armor Coverage 1375 Resistance: KI 15 Resistance: TH 90 Resistance: EX 90 Resistance: EM 15 Resistance: I 15 Resistance: S 15 Resistance: P 15 Utility Shielding 90 Weapon Shielding 100 Phase Shifting 20 Evasion (%) 91 Targeting Accuracy 12 Melee Accuracy 15 Recoil Reduction 2 Offensive Hacking 112 Defensive Hacking 37 Item Schematics ----------------- None Robot Schematics ------------------ None Fabricated ------------ Exp. Utility Shielding | x1 | -5/Factory Adv. Hacking Suite | x1 | -5/Factory Inertial Stasis Machine | x1 | -4/Factory Inertial Stasis Machine | x1 | -4/Factory Adv. System Shield | x1 | -4/Factory Mni. Fusion Reactor | x1 | -3/Research Exp. Utility Shielding | x1 | -2/Research Dimensional Manipulator | x1 | -2/Research L-61 Swordsman | x3 | -2/Testing Alien Tech Used ----------------- Integrated Dissipator Transdimensional Reconstructor Core Reset Matrix Subatomic Replicator Achievements -------------- None Challenges ------------ None Game ------ Seed MappingTransportCannon Manual? 0 Play Time 06:59:48 Cumulative 717.7 hours Start 2020.06.23 @ 14:34:05 End 2020.07.11 @ 11:24:19 Sessions 11 Manual Loads 0 Difficulty Rogue Special Mode None Game No. 448 Rogue 448 Adventurer 0 Explorer 0 Win Type - Total 106 Types 72/6/8/10/5/1/4 Lore% 97 Gallery% 95 Achievement% 80 Wizard Run 0 Options --------- ASCII 0 Keyboard 0 Movement Numpad Keybinds 0 Fullscreen 2 Font 18/SmallcapsGlow Map View 76x50 Tactical HUD 1 Map Filters NONE Filters NONE Steam 1 RUN: 1079894d-0e7f-41b1-a9ec-8179c671c629